[Event "ONJK FGH 2"]
[Site "Enschede, Netherlands"]
[Date "2022.08.12"]
[Round "5.3"]
[White "Datta, Satadru"]
[Black "De Labaca, Julia"]
[Result "0-1"]
[TimeControl "25min + 10sec/move"]
[WhiteElo "786"]
[BlackElo "1114"]

1. e4 {[%clk 00:25:19]} e5 {[%clk 00:25:19]} {[%emt 00:00:02]} 2. Nf3 {[%clk
00:25:25]} {[%emt 00:00:04]} Nc6 {[%clk 00:25:15]} {[%emt 00:00:13]} 3. Bc4
{[%clk 00:25:29]} {[%emt 00:00:06]} Bc5 {[%clk 00:25:21]} {[%emt 00:00:05]} 4.
Nc3 {[%clk 00:25:35]} {[%emt 00:00:04]} Nf6 {[%clk 00:25:26]} {[%emt 00:00:04]}
5. d3 {[%clk 00:25:43]} {[%emt 00:00:03]} h6 {[%clk 00:25:25]} {[%emt
00:00:11]} 6. Na4 {[%clk 00:25:27]} {[%emt 00:00:26]} Bb6 {[%clk 00:24:51]}
{[%emt 00:00:43]} 7. Bd2 {[%clk 00:25:01]} {[%emt 00:00:36]} d6 {[%clk
00:24:50]} {[%emt 00:00:11]} 8. h3 {[%clk 00:24:47]} {[%emt 00:00:23]} Bd7
{[%clk 00:23:47]} {[%emt 00:01:15]} 9. Nc3 {[%clk 00:24:11]} {[%emt 00:00:46]}
g5 {[%clk 00:23:30]} {[%emt 00:00:26]} 10. Nd5 {[%clk 00:23:03]} {[%emt
00:01:19]} g4 {[%clk 00:23:18]} {[%emt 00:00:22]} 11. Nxf6+ {[%clk 00:22:51]}
{[%emt 00:00:21]} Qxf6 {[%clk 00:23:23]} {[%emt 00:00:06]} 12. hxg4 {[%clk
00:22:11]} {[%emt 00:00:49]} Bxg4 {[%clk 00:23:27]} {[%emt 00:00:07]} 13. c3
{[%clk 00:21:33]} {[%emt 00:00:47]} O-O-O {[%clk 00:23:10]} {[%emt 00:00:28]}
14. Qe2 {[%clk 00:21:15]} {[%emt 00:00:27]} Rdg8 {[%clk 00:22:25]} {[%emt
00:00:55]} 15. O-O-O {[%clk 00:21:06]} {[%emt 00:00:19]} Rg6 {[%clk 00:22:10]}
{[%emt 00:00:25]} 16. Rdf1 {[%clk 00:20:07]} {[%emt 00:01:09]} Rhg8 {[%clk
00:21:36]} {[%emt 00:00:44]} 17. Rhg1 {[%clk 00:19:05]} {[%emt 00:01:12]} Bxf3
{[%clk 00:21:36]} {[%emt 00:00:10]} 18. gxf3 {[%clk 00:18:29]} {[%emt
00:00:46]} Rxg1 {[%clk 00:21:30]} {[%emt 00:00:17]} 19. Rxg1 {[%clk 00:18:05]}
{[%emt 00:00:33]} Rxg1+ {[%clk 00:21:30]} {[%emt 00:00:10]} 20. Be1 {[%clk
00:17:51]} {[%emt 00:00:25]} Qg5+ {[%clk 00:21:12]} {[%emt 00:00:27]} 21. Kd1
{[%clk 00:17:23]} {[%emt 00:00:38]} Qh4 {[%clk 00:20:35]} {[%emt 00:00:48]} 22.
Kd2 {[%clk 00:16:57]} {[%emt 00:00:36]} Rg2 {[%clk 00:20:15]} {[%emt 00:00:29]}
23. Qf1 {[%clk 00:16:30]} {[%emt 00:00:36]} Qg5+ {[%clk 00:19:31]} {[%emt
00:00:55]} 24. Kc2 {[%clk 00:16:14]} {[%emt 00:00:26]} Rg1 {[%clk 00:19:19]}
{[%emt 00:00:22]} 25. Qe2 {[%clk 00:16:06]} {[%emt 00:00:17]} Qg2 {[%clk
00:18:45]} {[%emt 00:00:42]} 26. Bxf7 {[%clk 00:15:18]} {[%emt 00:01:00]} Rf1
{[%clk 00:18:45]} {[%emt 00:00:10]} 27. Kd1 {[%clk 00:14:21]} {[%emt 00:01:07]}
Bxf2 {[%clk 00:18:45]} {[%emt 00:00:10]} 28. Be6+ {[%clk 00:13:15]} {[%emt
00:01:16]} Kb8 {[%clk 00:18:40]} {[%emt 00:00:15]} 29. Bh3 {[%clk 00:13:03]}
{[%emt 00:00:22]} Rxe1+ {[%clk 00:18:42]} {[%emt 00:00:09]} 30. Qxe1 {[%clk
00:13:10]} {[%emt 00:00:03]} Qxh3 {[%clk 00:18:18]} {[%emt 00:00:34]} 31. Qxf2
{[%clk 00:13:06]} {[%emt 00:00:14]} Qh1+ {[%clk 00:18:23]} {[%emt 00:00:04]} 32.
Ke2 {[%clk 00:13:10]} {[%emt 00:00:06]} a6 {[%clk 00:18:14]} {[%emt 00:00:17]}
33. Ke3 {[%clk 00:12:39]} {[%emt 00:00:43]} Qc1+ {[%clk 00:18:16]} {[%emt
00:00:09]} 34. Qd2 {[%clk 00:12:18]} {[%emt 00:00:30]} Qg1+ {[%clk 00:18:14]}
{[%emt 00:00:12]} 35. Qf2 {[%clk 00:12:22]} {[%emt 00:00:06]} Qg5+ {[%clk
00:18:19]} {[%emt 00:00:02]} 36. Ke2 {[%clk 00:12:19]} {[%emt 00:00:16]} h5
{[%clk 00:18:24]} {[%emt 00:00:05]} 37. Qe3 {[%clk 00:12:17]} {[%emt 00:00:13]}
Qh4 {[%clk 00:18:01]} {[%emt 00:00:33]} 38. Qf2 {[%clk 00:12:19]} {[%emt
00:00:07]} Qh3 {[%clk 00:17:58]} {[%emt 00:00:13]} 39. Qf1 {[%clk 00:12:10]}
{[%emt 00:00:20]} Qe6 {[%clk 00:17:44]} {[%emt 00:00:21]} 40. b3 {[%clk
00:11:59]} {[%emt 00:00:23]} h4 {[%clk 00:17:48]} {[%emt 00:00:06]} 41. Qg1
{[%clk 00:11:44]} {[%emt 00:00:25]} h3 {[%clk 00:17:46]} {[%emt 00:00:12]} 42.
Qh2 {[%clk 00:11:30]} {[%emt 00:00:24]} Qh6 {[%clk 00:17:10]} {[%emt 00:00:46]}
43. Kf2 {[%clk 00:11:05]} {[%emt 00:00:36]} Qh4+ {[%clk 00:17:14]} {[%emt
00:00:04]} 44. Qg3 {[%clk 00:11:01]} {[%emt 00:00:14]} Qh6 {[%clk 00:17:02]}
{[%emt 00:00:20]} 45. Kg1 {[%clk 00:11:01]} {[%emt 00:00:14]} Qc1+ {[%clk
00:16:41]} {[%emt 00:00:30]} 46. Kh2 {[%clk 00:11:04]} {[%emt 00:00:07]} Qc2+
{[%clk 00:16:33]} {[%emt 00:00:18]} 47. Kxh3 {[%clk 00:11:10]} {[%emt
00:00:04]} Qxa2 {[%clk 00:16:38]} {[%emt 00:00:06]} 48. Qg8+ {[%clk 00:11:02]}
{[%emt 00:00:18]} Ka7 {[%clk 00:16:41]} {[%emt 00:00:06]} 49. Qg1+ {[%clk
00:11:05]} {[%emt 00:00:08]} b6 {[%clk 00:16:33]} {[%emt 00:00:18]} 50. Qg7
{[%clk 00:11:01]} {[%emt 00:00:13]} Kb7 {[%clk 00:16:26]} {[%emt 00:00:18]} 51.
b4 {[%clk 00:10:43]} {[%emt 00:00:28]} Qe6+ {[%clk 00:16:28]} {[%emt 00:00:07]}
52. Kh4 {[%clk 00:10:43]} {[%emt 00:00:11]} d5 {[%clk 00:16:17]} {[%emt
00:00:20]} 53. Kg5 {[%clk 00:10:29]} {[%emt 00:00:24]} d4 {[%clk 00:15:41]}
{[%emt 00:00:47]} 54. c4 {[%clk 00:10:21]} {[%emt 00:00:18]} Nxb4 {[%clk
00:15:41]} {[%emt 00:00:11]} 55. Qf6 {[%clk 00:10:10]} {[%emt 00:00:20]} Qh3
{[%clk 00:15:32]} {[%emt 00:00:19]} 56. Qxe5 {[%clk 00:09:35]} {[%emt
00:00:44]} Qxf3 {[%clk 00:15:23]} {[%emt 00:00:18]} 57. Qxd4 {[%clk 00:09:00]}
{[%emt 00:00:45]} Nxd3 {[%clk 00:15:24]} {[%emt 00:00:09]} 58. Qd5+ {[%clk
00:09:01]} {[%emt 00:00:10]} Kc8 {[%clk 00:14:46]} {[%emt 00:01:20]} 59. Qa8+
{[%clk 00:08:50]} {[%emt 00:00:21]} Kd7 {[%clk 00:14:38]} {[%emt 00:00:18]} 60.
Qxa6 {[%clk 00:08:54]} {[%emt 00:00:05]} Qxe4 {[%clk 00:14:34]} {[%emt
00:00:15]} 61. Qa4+ {[%clk 00:08:58]} {[%emt 00:00:06]} Qc6 {[%clk 00:14:26]}
{[%emt 00:00:16]} 62. Qd1 {[%clk 00:08:36]} {[%emt 00:00:34]} Qxc4 {[%clk
00:14:16]} {[%emt 00:00:20]} 63. Qh5 {[%clk 00:08:04]} {[%emt 00:00:42]} Qc5+
{[%clk 00:14:19]} {[%emt 00:00:05]} 64. Kh6 {[%clk 00:08:02]} {[%emt 00:00:12]}
Qxh5+ {[%clk 00:14:28]} {[%emt 00:00:03]} 65. Kxh5 {[%clk 00:08:09]} {[%emt
00:00:03]} b5 {[%clk 00:14:36]} {[%emt 00:00:03]} 66. Kg4 {[%clk 00:08:17]}
{[%emt 00:00:01]} b4 {[%clk 00:14:42]} {[%emt 00:00:04]} 67. Kf3 {[%clk
00:08:25]} {[%emt 00:00:02]} b3 {[%clk 00:14:39]} {[%emt 00:00:14]} 68. Ke2
{[%clk 00:08:34]} b2 {[%clk 00:14:46]} {[%emt 00:00:03]} 69. Kxd3 {[%clk
00:08:36]} {[%emt 00:00:07]} b1=Q+ {[%clk 00:14:51]} {[%emt 00:00:05]} 70. Kc4
{[%clk 00:08:43]} {[%emt 00:00:04]} Qa2+ {[%clk 00:14:55]} {[%emt 00:00:06]} 71.
Kb4 {[%clk 00:08:51]} {[%emt 00:00:02]} c6 {[%clk 00:15:02]} {[%emt 00:00:03]}
72. Kc3 {[%clk 00:08:58]} {[%emt 00:00:02]} c5 {[%clk 00:15:08]} {[%emt
00:00:05]} 73. Kd3 {[%clk 00:09:02]} {[%emt 00:00:06]} c4+ {[%clk 00:15:14]}
{[%emt 00:00:03]} 74. Kc3 {[%clk 00:09:08]} {[%emt 00:00:04]} Kc7 {[%clk
00:15:11]} {[%emt 00:00:13]} 75. Kd4 {[%clk 00:09:10]} {[%emt 00:00:08]} c3
{[%clk 00:15:17]} {[%emt 00:00:04]} 76. Ke3 {[%emt 00:00:13]} c2 {[%clk
00:15:22]} {[%emt 00:00:03]} 77. Kd2 {[%clk 00:09:16]} {[%emt 00:00:03]} Qb1
{[%clk 00:15:22]} {[%emt 00:00:10]} 78. Kd3 {[%clk 00:09:13]} {[%emt 00:00:13]}
c1=Q+ {[%clk 00:15:28]} {[%emt 00:00:04]} 79. Kd4 {[%clk 00:09:19]} {[%emt
00:00:04]} Qb4+ {[%clk 00:15:32]} {[%emt 00:00:06]} 80. Kd5 {[%clk 00:09:27]}
{[%emt 00:00:03]} Qbd2+ {[%clk 00:15:38]} {[%emt 00:00:03]} 81. Ke4 {[%clk
00:09:35]} {[%emt 00:00:02]} Qce1+ {[%clk 00:15:47]} {[%emt 00:00:01]} 82. Kf3
{[%clk 00:09:43]} {[%emt 00:00:02]} Qdf2+ {[%clk 00:15:55]} {[%emt 00:00:02]}
83. Kg4 {[%clk 00:09:51]} {[%emt 00:00:03]} Qeg1+ {[%clk 00:16:03]} {[%emt
00:00:01]} 84. Kh3 {[%clk 00:09:59]} {[%emt 00:00:02]} Qfg3# {[%clk 00:16:00]}
{[%emt 00:00:04]} 0-1

[Event "ONJK FGH 2"]
[Site "Enschede, Netherlands"]
[Date "2022.08.12"]
[Round "6.1"]
[White "De Labaca, Julia"]
[Black "Zantingh, Kyo"]
[Result "0-1"]
[TimeControl "25min + 10sec/move"]
[WhiteElo "1114"]
[BlackElo "739"]

1. e4 {[%clk 00:25:19]} e5 {[%clk 00:25:17]} {[%emt 00:00:04]} 2. Nf3 {[%clk
00:25:26]} {[%emt 00:00:02]} Nc6 {[%clk 00:25:26]} {[%emt 00:00:02]} 3. Nc3
{[%clk 00:25:34]} {[%emt 00:00:03]} Bc5 {[%clk 00:25:29]} {[%emt 00:00:07]} 4.
Nxe5 {[%emt 00:00:06]} Nxe5 {[%clk 00:25:35]} {[%emt 00:00:03]} 5. d4 {[%clk
00:25:47]} {[%emt 00:00:02]} Bxd4 {[%clk 00:25:37]} {[%emt 00:00:09]} 6. Qxd4
{[%clk 00:25:48]} {[%emt 00:00:02]} Qf6 {[%emt 00:00:31]} 7. Bc4 {[%clk
00:25:26]} {[%emt 00:00:30]} Nf3+ {[%clk 00:25:28]} {[%emt 00:00:07]} 8. gxf3
{[%clk 00:25:16]} {[%emt 00:00:20]} Qxd4 {[%clk 00:25:36]} {[%emt 00:00:02]} 9.
Bb3 {[%clk 00:25:11]} {[%emt 00:00:14]} Qf6 {[%emt 00:00:21]} 10. Be3 {[%clk
00:24:41]} {[%emt 00:00:27]} Qxf3 {[%clk 00:25:45]} {[%emt 00:00:04]} 11. Rg1
{[%clk 00:24:40]} {[%emt 00:00:10]} Qf6 {[%clk 00:25:31]} {[%emt 00:00:24]} 12.
O-O-O {[%clk 00:24:39]} {[%emt 00:00:11]} d6 {[%clk 00:25:24]} {[%emt
00:00:18]} 13. Bd4 {[%clk 00:24:42]} {[%emt 00:00:05]} Qh6+ {[%clk 00:25:30]}
{[%emt 00:00:05]} 14. Kb1 {[%clk 00:24:39]} {[%emt 00:00:12]} f6 {[%clk
00:25:38]} {[%emt 00:00:03]} 15. Nd5 {[%clk 00:24:32]} {[%emt 00:00:16]} Kd8
{[%clk 00:25:27]} {[%emt 00:00:23]} 16. f4 {[%clk 00:23:52]} {[%emt 00:00:49]}
c6 {[%clk 00:25:29]} {[%emt 00:00:08]} 17. Ne3 {[%clk 00:23:14]} {[%emt
00:00:47]} Qxf4 {[%clk 00:25:36]} {[%emt 00:00:04]} 18. Nf5 {[%clk 00:22:42]}
{[%emt 00:00:42]} Bxf5 {[%clk 00:25:38]} {[%emt 00:00:08]} 19. exf5 {[%clk
00:22:44]} {[%emt 00:00:07]} Qxf5 {[%clk 00:25:38]} {[%emt 00:00:12]} 20. Rxg7
{[%clk 00:22:36]} {[%emt 00:00:17]} c5 {[%clk 00:25:30]} {[%emt 00:01:33]} 21.
Bc3 {[%clk 00:22:08]} {[%emt 00:00:31]} Ne7 {[%clk 00:25:26]} {[%emt 00:00:15]}
22. a3 {[%clk 00:21:58]} {[%emt 00:00:20]} b5 {[%clk 00:25:19]} {[%emt
00:00:16]} 23. Rxd6+ {[%clk 00:22:01]} {[%emt 00:00:07]} Ke8 {[%clk 00:25:19]}
{[%emt 00:00:11]} 24. Bf7+ {[%clk 00:21:47]} {[%emt 00:00:22]} Kf8 {[%clk
00:25:21]} {[%emt 00:00:10]} 25. Be6 {[%clk 00:21:32]} {[%emt 00:00:24]} Qf1+
{[%clk 00:25:20]} {[%emt 00:00:07]} 26. Ka2 {[%clk 00:21:30]} {[%emt 00:00:17]}
Kxg7 {[%clk 00:25:28]} {[%emt 00:00:02]} 27. Bd5 {[%clk 00:21:15]} {[%emt
00:00:24]} Nxd5 {[%clk 00:25:36]} {[%emt 00:00:03]} 28. Rxd5 {[%clk 00:21:18]}
{[%emt 00:00:06]} Qc4+ {[%clk 00:25:44]} {[%emt 00:00:02]} 29. b3 {[%clk
00:21:07]} {[%emt 00:00:21]} Qxd5 {[%clk 00:25:53]} {[%emt 00:00:02]} 30. Bb2
{[%clk 00:21:05]} {[%emt 00:00:11]} c4 {[%clk 00:26:02]} {[%emt 00:00:02]} 31.
bxc4 {[%clk 00:21:01]} {[%emt 00:00:14]} Qxc4+ {[%clk 00:26:11]} 32. Kb1 {[%clk
00:21:06]} {[%emt 00:00:04]} Rac8 {[%clk 00:26:20]} {[%emt 00:00:02]} 33. Ka1
{[%clk 00:20:52]} {[%emt 00:00:24]} Qf1+ {[%clk 00:26:21]} {[%emt 00:00:09]} 34.
Ka2 {[%clk 00:20:58]} {[%emt 00:00:04]} Rxc2 {[%clk 00:26:29]} {[%emt
00:00:01]} 35. a4 {[%clk 00:20:42]} {[%emt 00:00:27]} Qc4+ {[%clk 00:26:37]}
{[%emt 00:00:01]} 36. Kb1 {[%clk 00:20:43]} {[%emt 00:00:08]} Qxa4 {[%emt
00:00:51]} 37. Ba1 {[%clk 00:20:02]} {[%emt 00:00:06]} Qa2# {[%clk 00:26:37]}
{[%emt 00:00:07]} 0-1

[Event "ONJK FGH 2"]
[Site "Enschede, Netherlands"]
[Date "2022.08.12"]
[Round "6.2"]
[White "Ma, Tim"]
[Black "Oelmeijer, Sjoerd"]
[Result "1-0"]
[TimeControl "25min + 10sec/move"]
[WhiteElo "757"]
[BlackElo "743"]

1. e4 {[%clk 00:25:16]} {[%emt 00:00:03]} e5 {[%clk 00:25:20]} {[%emt
00:00:02]} 2. Nf3 {[%clk 00:25:24]} {[%emt 00:00:01]} Nc6 {[%clk 00:25:29]} 3.
Bc4 {[%clk 00:25:31]} {[%emt 00:00:03]} Bc5 {[%clk 00:25:33]} {[%emt 00:00:06]}
4. Nc3 {[%clk 00:25:38]} {[%emt 00:00:03]} Nf6 {[%clk 00:25:36]} {[%emt
00:00:06]} 5. d3 {[%clk 00:25:44]} {[%emt 00:00:04]} O-O {[%clk 00:25:42]}
{[%emt 00:00:05]} 6. Bg5 {[%clk 00:25:52]} {[%emt 00:00:02]} h6 {[%clk
00:25:46]} {[%emt 00:00:06]} 7. Be3 {[%clk 00:25:57]} {[%emt 00:00:04]} Bxe3 8.
fxe3 {[%clk 00:26:05]} Ng4 {[%clk 00:25:46]} {[%emt 00:00:13]} 9. Qe2 {[%clk
00:26:11]} {[%emt 00:00:03]} d6 {[%clk 00:25:43]} {[%emt 00:00:14]} 10. O-O
{[%clk 00:26:17]} {[%emt 00:00:03]} Nf6 {[%clk 00:25:39]} {[%emt 00:00:15]} 11.
Nh4 {[%clk 00:26:14]} {[%emt 00:00:11]} Be6 {[%clk 00:24:53]} {[%emt 00:00:57]}
12. Bb3 {[%clk 00:26:05]} {[%emt 00:00:20]} Qd7 {[%clk 00:24:41]} {[%emt
00:00:21]} 13. Bxe6 {[%clk 00:25:53]} {[%emt 00:00:20]} Qxe6 {[%clk 00:24:28]}
{[%emt 00:00:24]} 14. Qf3 {[%clk 00:25:41]} {[%emt 00:00:23]} Qg4 {[%clk
00:24:11]} {[%emt 00:00:27]} 15. Qxg4 {[%clk 00:25:41]} {[%emt 00:00:09]} Nxg4
{[%clk 00:24:19]} {[%emt 00:00:04]} 16. Rf3 {[%clk 00:25:27]} {[%emt 00:00:22]}
Nf6 {[%clk 00:24:21]} {[%emt 00:00:09]} 17. Rg3 {[%clk 00:25:33]} {[%emt
00:00:04]} Rad8 {[%clk 00:23:04]} {[%emt 00:01:27]} 18. Nf5 {[%clk 00:25:35]}
{[%emt 00:00:07]} Ne8 {[%clk 00:22:35]} {[%emt 00:00:40]} 19. Nxh6+ {[%clk
00:25:36]} {[%emt 00:00:09]} Kh8 {[%clk 00:22:11]} {[%emt 00:00:34]} 20. Nf5
{[%clk 00:25:38]} {[%emt 00:00:08]} g6 {[%clk 00:22:01]} {[%emt 00:00:20]} 21.
Rh3+ {[%clk 00:25:40]} {[%emt 00:00:08]} Kg8 {[%clk 00:22:07]} {[%emt
00:00:04]} 22. Nh6+ {[%clk 00:25:23]} {[%emt 00:00:27]} Kg7 {[%clk 00:22:14]}
{[%emt 00:00:03]} 23. Ng4 {[%clk 00:25:30]} {[%emt 00:00:02]} Nf6 {[%clk
00:22:03]} {[%emt 00:00:22]} 24. Nxf6 {[%clk 00:25:30]} {[%emt 00:00:09]} Kxf6
{[%emt 00:00:06]} 25. Nd5+ {[%clk 00:25:33]} {[%emt 00:00:04]} Kg7 {[%clk
00:22:11]} {[%emt 00:00:09]} 26. Rf1 {[%clk 00:25:40]} {[%emt 00:00:03]} Rc8
{[%clk 00:21:41]} {[%emt 00:00:39]} 27. Nf6 {[%clk 00:25:46]} {[%emt 00:00:05]}
Rh8 {[%clk 00:21:22]} {[%emt 00:00:30]} 28. Rhf3 {[%clk 00:25:37]} {[%emt
00:00:18]} Rhd8 {[%clk 00:20:33]} {[%emt 00:00:58]} 29. Nd5 {[%clk 00:25:17]}
{[%emt 00:00:30]} Rd7 {[%clk 00:20:31]} {[%emt 00:00:12]} 30. Nf6 {[%clk
00:25:03]} {[%emt 00:00:25]} Rdd8 {[%clk 00:20:19]} {[%emt 00:00:22]} 31. Nd5
{[%clk 00:24:58]} {[%emt 00:00:15]} Rd7 {[%clk 00:20:27]} {[%emt 00:00:03]} 32.
b4 {[%clk 00:24:56]} {[%emt 00:00:11]} Rf8 {[%clk 00:20:20]} {[%emt 00:00:16]}
33. b5 {[%clk 00:24:57]} {[%emt 00:00:10]} Ne7 {[%clk 00:20:04]} {[%emt
00:00:26]} 34. Nf6 {[%clk 00:24:54]} {[%emt 00:00:13]} Rdd8 {[%clk 00:20:04]}
{[%emt 00:00:09]} 35. Rg3 {[%clk 00:25:01]} {[%emt 00:00:03]} c6 {[%clk
00:19:23]} {[%emt 00:00:52]} 36. c4 {[%clk 00:24:36]} {[%emt 00:00:35]} cxb5
{[%clk 00:18:57]} {[%emt 00:00:37]} 37. cxb5 {[%clk 00:24:35]} {[%emt
00:00:10]} a6 {[%clk 00:17:17]} {[%emt 00:01:50]} 38. a4 {[%clk 00:24:33]}
{[%emt 00:00:12]} axb5 {[%clk 00:16:59]} {[%emt 00:00:28]} 39. axb5 {[%clk
00:24:37]} {[%emt 00:00:05]} b6 {[%clk 00:16:56]} {[%emt 00:00:14]} 40. Rff3
{[%clk 00:24:33]} {[%emt 00:00:14]} d5 {[%clk 00:15:43]} {[%emt 00:01:24]} 41.
Rg4 {[%clk 00:24:07]} {[%emt 00:00:33]} dxe4 {[%clk 00:15:38]} {[%emt
00:00:17]} 42. dxe4 {[%clk 00:23:14]} {[%emt 00:01:03]} Rd1+ {[%clk 00:15:41]}
{[%emt 00:00:07]} 43. Kf2 {[%clk 00:22:55]} {[%emt 00:00:29]} Rd2+ {[%clk
00:15:44]} {[%emt 00:00:07]} 44. Ke1 {[%clk 00:22:56]} {[%emt 00:00:09]} Rb2
{[%clk 00:15:42]} {[%emt 00:00:12]} 45. Rh4 {[%clk 00:23:00]} {[%emt 00:00:06]}
Rh8 {[%clk 00:15:32]} {[%emt 00:00:20]} 46. Rxh8 {[%clk 00:23:07]} {[%emt
00:00:02]} Kxh8 {[%clk 00:15:39]} {[%emt 00:00:04]} 47. Nd7 {[%clk 00:21:39]}
{[%emt 00:01:37]} Rxb5 {[%clk 00:15:16]} {[%emt 00:00:34]} 48. Rxf7 {[%clk
00:21:45]} {[%emt 00:00:03]} Rb1+ {[%clk 00:15:11]} {[%emt 00:00:16]} 49. Kd2
{[%clk 00:21:52]} {[%emt 00:00:03]} Rb2+ {[%clk 00:15:17]} {[%emt 00:00:03]} 50.
Kc1 {[%clk 00:21:53]} {[%emt 00:00:10]} Rxg2 {[%clk 00:15:14]} {[%emt
00:00:13]} 51. Nf6 {[%clk 00:21:39]} {[%emt 00:00:24]} Rxh2 {[%clk 00:15:06]}
{[%emt 00:00:19]} 52. Rxe7 {[%clk 00:21:41]} {[%emt 00:00:07]} g5 {[%clk
00:13:39]} {[%emt 00:01:37]} 53. Rxe5 {[%clk 00:21:41]} {[%emt 00:00:08]} b5
{[%clk 00:13:14]} {[%emt 00:00:37]} 54. Rxg5 {[%clk 00:21:46]} {[%emt
00:00:04]} Rh1+ {[%clk 00:13:10]} {[%emt 00:00:15]} 55. Kc2 {[%clk 00:21:48]}
{[%emt 00:00:08]} Rh2+ {[%clk 00:13:15]} {[%emt 00:00:06]} 56. Kd3 {[%clk
00:21:50]} {[%emt 00:00:07]} Rg2 {[%clk 00:12:40]} {[%emt 00:00:44]} 57. Rxg2
{[%emt 00:01:53]} 1-0

[Event "ONJK FGH 2"]
[Site "Enschede, Netherlands"]
[Date "2022.08.12"]
[Round "6.3"]
[White "Okita, Ryoga"]
[Black "De Wit, Jim"]
[Result "0-1"]
[TimeControl "25min + 10sec/move"]
[WhiteElo "829"]
[BlackElo "889"]

1. e4 {[%clk 00:25:19]} {[%emt 00:32:51]} e5 {[%clk 00:25:18]} {[%emt
00:00:03]} 2. Nf3 {[%clk 00:25:27]} {[%emt 00:00:02]} Nc6 {[%clk 00:25:26]}
{[%emt 00:00:02]} 3. Bc4 {[%clk 00:25:36]} {[%emt 00:00:01]} d6 {[%clk
00:25:19]} {[%emt 00:00:17]} 4. d3 {[%clk 00:25:43]} {[%emt 00:00:04]} Nf6
{[%clk 00:25:24]} {[%emt 00:00:04]} 5. Nc3 {[%clk 00:25:49]} {[%emt 00:00:05]}
Be7 {[%clk 00:25:30]} {[%emt 00:00:03]} 6. h3 {[%clk 00:25:57]} {[%emt
00:00:03]} O-O {[%clk 00:25:37]} {[%emt 00:00:02]} 7. O-O {[%clk 00:26:06]}
{[%emt 00:00:02]} h6 {[%clk 00:25:41]} {[%emt 00:00:05]} 8. d4 {[%clk
00:26:03]} {[%emt 00:00:14]} Bd7 {[%clk 00:25:12]} {[%emt 00:00:39]} 9. dxe5
{[%clk 00:25:58]} {[%emt 00:00:15]} dxe5 {[%clk 00:25:17]} {[%emt 00:00:05]} 10.
Be3 {[%clk 00:25:47]} {[%emt 00:00:10]} Re8 {[%clk 00:25:06]} {[%emt 00:00:31]}
11. Qd2 {[%clk 00:25:55]} {[%emt 00:00:02]} Bf8 {[%clk 00:25:07]} {[%emt
00:00:09]} 12. Nd5 {[%clk 00:25:57]} {[%emt 00:00:10]} Nxe4 {[%clk 00:24:51]}
{[%emt 00:00:25]} 13. Qd3 {[%clk 00:25:48]} {[%emt 00:00:17]} Bf5 {[%clk
00:24:00]} {[%emt 00:01:03]} 14. g4 {[%clk 00:24:48]} {[%emt 00:01:09]} Bh7
{[%clk 00:23:58]} {[%emt 00:00:10]} 15. Qe2 {[%clk 00:22:58]} {[%emt 00:01:58]}
a6 {[%clk 00:23:25]} {[%emt 00:00:49]} 16. Nd2 {[%clk 00:22:49]} {[%emt
00:00:17]} Nxd2 {[%clk 00:23:27]} {[%emt 00:00:10]} 17. Qxd2 {[%clk 00:22:56]}
{[%emt 00:00:03]} b5 {[%clk 00:22:54]} {[%emt 00:00:42]} 18. Bb3 {[%clk
00:22:58]} {[%emt 00:00:10]} a5 {[%clk 00:22:28]} {[%emt 00:00:35]} 19. a3
{[%clk 00:23:00]} {[%emt 00:00:07]} a4 {[%clk 00:21:52]} {[%emt 00:00:46]} 20.
Ba2 {[%clk 00:23:09]} Bd6 {[%clk 00:21:32]} {[%emt 00:00:31]} 21. Bxh6 {[%clk
00:22:47]} {[%emt 00:00:32]} gxh6 {[%clk 00:21:02]} {[%emt 00:00:40]} 22. Qxh6
{[%clk 00:22:56]} Re6 {[%clk 00:21:06]} {[%emt 00:00:07]} 23. Qh5 {[%clk
00:22:34]} {[%emt 00:00:28]} Rg6 {[%clk 00:20:45]} {[%emt 00:00:34]} 24. f4
{[%clk 00:22:16]} {[%emt 00:00:30]} exf4 {[%clk 00:19:53]} {[%emt 00:01:02]} 25.
Nxf4 {[%clk 00:22:23]} {[%emt 00:00:02]} Bxf4 {[%clk 00:18:39]} {[%emt
00:01:24]} 26. Rxf4 {[%clk 00:22:32]} {[%emt 00:00:02]} Rg7 {[%clk 00:18:25]}
{[%emt 00:00:23]} 27. Bxf7+ {[%clk 00:22:23]} {[%emt 00:00:20]} Kh8 {[%clk
00:18:19]} {[%emt 00:00:15]} 28. Raf1 {[%clk 00:22:12]} {[%emt 00:00:16]} Nd4
{[%clk 00:17:48]} {[%emt 00:00:47]} 29. Rf6 {[%clk 00:20:57]} {[%emt 00:01:24]}
Ne2+ {[%clk 00:17:28]} {[%emt 00:00:30]} 30. Kh2 {[%clk 00:21:05]} {[%emt
00:00:02]} Qd2 {[%clk 00:16:44]} {[%emt 00:00:48]} 31. R1f2 {[%clk 00:21:10]}
{[%emt 00:00:12]} Qe3 {[%clk 00:16:02]} {[%emt 00:00:49]} 32. Bd5 {[%clk
00:20:55]} {[%emt 00:00:24]} Qg3+ {[%clk 00:15:58]} {[%emt 00:00:15]} 33. Kh1
{[%clk 00:21:03]} {[%emt 00:00:04]} Qg1# {[%clk 00:15:55]} {[%emt 00:00:03]}
0-1